bitfinex/quotes_ETHUSD_20220120
["timestamp","ask_amount","ask_price","bid_price","bid_amount"]
[1642695223689,0.00170527,3248.8,3248.7,20.73460424]
[1642695223888,0.00170527,3248.8,3248.7,20.73685503]
[1642695224088,0.00170527,3248.8,3248.7,1.6017875]
[1642695224289,2.62074623,3248.8,3248.7,1.6017875]
[1642695224489,0.00170527,3248.8,3248.7,0.36925079]
[1642695225738,0.00170527,3248.8,3248.7,1.86873285]
[1642695226336,0.00170527,3248.8,3248.7,0.00225079]
[1642695226542,0.00170527,3248.8,3248.5,0.00225079]
[1642695226543,6.30355326,3248.6,3248.5,0.00225079]
[1642695226739,6.30355326,3248.6,3247.9,0.367]
[1642695226939,6.30355326,3248.6,3248.0,0.00224937]
[1642695227138,6.30355326,3248.6,3248.0,0.00509149]
[1642695227337,6.30355326,3248.6,3248.1,1.3360323]
[1642695227338,6.60355326,3248.6,3248.1,1.3360323]
[1642695227839,0.30355326,3248.6,3248.2,0.00170527]
[1642695228039,0.30355326,3248.6,3248.2,0.00395464]
[1642695228241,0.00355326,3248.6,3248.2,0.00395464]
[1642695228441,0.00355326,3248.6,3247.1,1.09585824]
[1642695228442,1.33211113,3247.5,3247.3,1.24752301]
[1642695228641,1.33211113,3247.5,3247.4,17.96]
[1642695228841,1.33211113,3247.5,3247.4,19.33211581]
[1642695229241,1.33211113,3247.5,3247.4,19.28211581]
[1642695229484,0.00113684,3248.5,3247.4,20.42769968]
[1642695229685,0.00113684,3248.5,3247.7,1.5394]
[1642695229886,0.00113684,3248.5,3247.8,0.367]
[1642695230084,0.00113684,3248.5,3247.9,17.91]
[1642695230085,2.62082107,3248.5,3247.9,17.91]
[1642695230386,2.62082107,3248.5,3248.0,0.36870527]
[1642695230592,2.62082107,3248.5,3248.3,1.1137146]
[1642695230794,2.62082107,3248.5,3248.3,1.4807146]
[1642695230795,4.14142139,3248.4,3248.3,1.4807146]
[1642695230988,2.61968423,3248.4,3248.3,2.69602289]
[1642695231190,1.522874,3248.5,3248.3,2.69602289]
[1642695231390,1.522874,3248.5,3248.3,1.58230829]
[1642695231589,4.14142139,3248.4,3248.3,1.58230829]
[1642695231792,2.61968423,3248.4,3248.3,1.58230829]
[1642695231990,1.522874,3248.5,3248.3,1.58230829]
[1642695232591,1.522874,3248.5,3248.4,1.32736436]
[1642695232792,1.522874,3248.5,3248.3,0.34701518]
[1642695232793,2.62082107,3248.5,3248.3,0.34701518]
[1642695232994,2.61968423,3248.4,3248.3,1.74904095]
[1642695233442,0.00113684,3248.5,3248.3,1.74904095]
[1642695233642,4.15654451,3248.4,3248.3,1.74904095]
[1642695233941,3.04461115,3248.5,3248.3,1.74904095]
[1642695234338,5.66315854,3248.4,3248.3,1.74904095]
[1642695234741,2.61968423,3248.4,3248.3,1.74904095]
[1642695235142,3.04347431,3248.4,3248.3,0.34701518]
[1642695235341,2.61968423,3248.4,3248.3,0.56241518]
[1642695235542,0.00113684,3248.5,3248.3,0.56241518]
[1642695235746,3.0853318,3248.5,3248.3,0.56241518]
[1642695235950,5.70501603,3248.5,3248.3,0.56241518]
[1642695236148,2.61968423,3248.4,3248.3,0.56241518]
[1642695236544,3.0853318,3248.5,3248.3,0.56241518]
[1642695236744,5.70501603,3248.5,3248.3,0.56241518]
[1642695236985,2.61968423,3248.4,3248.3,0.56241518]
[1642695237186,2.61968423,3248.4,3248.3,0.92941518]
[1642695237388,0.00113684,3248.5,3248.4,17.91]
[1642695237588,0.00355326,3248.6,3248.4,19.277]
[1642695237887,3.08419496,3248.9,3248.4,19.277]
[1642695238088,3.08419496,3248.9,3248.5,1.3]
[1642695238286,3.08646866,3248.9,3248.7,17.91]
[1642695238494,0.0022737,3248.9,3248.8,3.417]
[1642695238688,0.0022737,3248.9,3248.8,22.327]
[1642695239486,0.0022737,3248.9,3248.8,23.8305353]
[1642695239687,0.35534277,3249.1,3248.8,23.8305353]
[1642695239889,3.69009893,3249.5,3249.1,5.25]
[1642695240089,0.60590397,3249.5,3249.3,17.91]
[1642695240288,0.60590397,3249.5,3249.4,2.17936575]
[1642695240488,0.60590397,3249.5,3249.4,21.08936575]
[1642695240738,0.60931451,3249.5,3249.4,21.08936575]
[1642695240939,0.60931451,3249.5,3249.4,21.77468416]
[1642695241338,0.60931451,3249.5,3249.4,21.99008416]
[1642695243439,0.60931451,3249.5,3249.4,17.80026496]
[1642695243639,0.60931451,3249.5,3249.4,2.71308416]
[1642695244787,0.60931451,3249.5,3249.4,20.67308416]
[1642695246989,0.60931451,3249.5,3249.4,21.67308416]
[1642695247187,0.60931451,3249.5,3249.4,20.67308416]
[1642695248234,0.60931451,3249.5,3249.4,21.04008416]
[1642695249039,0.60931451,3249.5,3249.4,22.04008416]
[1642695249640,0.60931451,3249.5,3249.4,21.04008416]
[1642695249838,0.60931451,3249.5,3249.4,22.04008416]
[1642695250039,3.08419496,3250.3,3249.5,6.2]
[1642695250040,2.3113001,3250.1,3249.5,6.2]
[1642695250241,0.01439257,3250.5,3249.7,0.7693]
[1642695250242,2.3113001,3250.2,3249.7,0.7693]
[1642695250440,2.3113001,3250.2,3250.0,1.18607265]
[1642695250640,0.01439257,3250.5,3250.1,0.367]
[1642695250641,2.3113001,3250.3,3250.1,0.367]
[1642695250839,2.3113001,3250.2,3250.1,0.367]
[1642695251987,0.00454739,3250.3,3250.1,0.367]
[1642695251988,0.00454739,3250.3,3250.2,22.31]
[1642695252186,0.00454739,3250.3,3250.2,18.327]
[1642695252386,2.62280931,3250.3,3250.2,19.627]
[1642695253589,4.1620138,3250.3,3250.2,19.627]
[1642695253789,4.1620138,3250.3,3250.2,20.39617]
[1642695253990,2.62280931,3250.3,3250.2,20.61157]
[1642695254193,4.16226904,3250.3,3250.2,20.61157]
[1642695254493,2.62280931,3250.3,3250.2,20.61157]
[1642695255290,1.55371438,3250.5,3250.3,6.3]
[1642695255490,1.55371438,3250.5,3250.4,20.64668631]
[1642695255743,1.55371438,3250.5,3250.4,0.367]
[1642695255744,0.01439257,3250.5,3250.4,0.367]
[1642695255939,0.01552942,3250.5,3250.4,0.367]
[1642695256945,0.01552942,3250.5,3250.4,0.5824]
[1642695257746,0.49401751,3250.3,3250.0,17.96]
[1642695257946,0.49401751,3250.3,3250.1,0.367]
[1642695257947,3.5663381,3250.3,3250.1,0.367]
[1642695258145,3.8663381,3250.3,3250.1,0.36813685]
[1642695258545,3.8663381,3250.3,3250.0,14.13826577]
[1642695258745,0.49401751,3250.3,3250.1,0.367]
[1642695258950,0.49401751,3250.3,3250.2,1.5035632]
[1642695259147,0.49401751,3250.3,3250.2,1.8705632]
[1642695259384,0.49401751,3250.3,3250.2,16.00882897]
[1642695259385,0.49515436,3250.3,3250.2,16.00882897]
[1642695259583,0.49515436,3250.3,3250.2,17.53065081]
[1642695263936,0.49515436,3250.3,3250.2,3.39238504]
[1642695264139,0.49515436,3250.3,3250.2,1.8705632]
[1642695265138,0.49515436,3250.3,3250.2,3.37489983]
[1642695265339,0.49515436,3250.3,3250.2,21.33489983]
[1642695266900,0.49515436,3250.3,3250.2,21.63489983]
[1642695267098,0.43015436,3250.3,3250.2,22.63489983]
[1642695267293,0.01439257,3250.5,3250.4,17.96]
[1642695267493,3.07232059,3251.2,3250.6,17.96]
[1642695267494,2.30707403,3251.2,3250.6,17.96]
[1642695267692,2.30707403,3251.2,3250.8,17.96]
[1642695267892,2.30707403,3251.2,3250.9,0.367]
[1642695268092,2.30707403,3251.3,3251.0,17.96]
[1642695268291,2.30707403,3251.3,3251.1,0.367]
[1642695268493,2.30707403,3251.3,3251.1,1.667]
[1642695268692,2.30707403,3251.3,3251.2,17.96]
[1642695268893,0.00625266,3251.4,3251.2,18.627]
[1642695269093,2.30707403,3251.4,3251.3,17.96]
[1642695269292,2.30707403,3251.4,3251.3,21.32817412]
[1642695269494,2.31332669,3251.4,3251.3,19.1562]
[1642695269698,0.00625266,3251.4,3251.3,2.1962]
[1642695269892,0.00625266,3251.4,3251.3,1.1962]
[1642695269893,3.07857325,3251.4,3251.3,1.1962]
[1642695270392,3.07857325,3251.4,3251.3,0.367]
[1642695270638,3.07857325,3251.4,3251.1,0.123178]
[1642695270639,1.26700692,3251.2,3251.1,0.123178]
[1642695270835,4.3481182,3251.2,3251.1,0.123178]
[1642695271035,3.08622709,3251.2,3250.8,0.367]
[1642695271235,2.31267207,3251.1,3250.9,17.96]
[1642695271436,2.31721946,3251.1,3251.0,0.367]
[1642695271639,2.31267207,3251.1,3251.0,0.367]
[1642695271836,3.08111128,3251.2,3251.0,18.327]
[1642695272040,4.5217953,3251.1,3251.0,0.367]
[1642695272640,1.44068402,3251.1,3250.3,18.327]
[1642695272841,2.31031088,3250.7,3250.3,18.627]
[1642695273238,0.00170527,3250.6,3250.3,18.327]
[1642695273439,0.00170527,3250.6,3250.3,14.13748057]
[1642695273440,2.31201615,3250.6,3250.3,14.13748057]
[1642695273639,0.00113685,3250.5,3250.3,14.13748057]
[1642695273839,0.00113685,3250.5,3250.3,14.50448057]
[1642695274514,1.5433809,3250.5,3250.3,14.50448057]
[1642695274805,1.54224405,3250.4,3250.3,14.50448057]
[1642695276205,4.16063672,3250.4,3250.3,14.50448057]
[1642695276504,1.54224405,3250.4,3250.3,14.50448057]
[1642695276705,1.54224405,3250.4,3250.3,15.80448057]
[1642695276706,2.61839267,3250.4,3250.3,15.80448057]
[1642695276904,1.5433809,3250.5,3250.3,15.80448057]
[1642695277106,1.5433809,3250.5,3250.4,0.8865288]
[1642695277309,1.5433809,3250.5,3250.4,15.39100937]
[1642695279945,0.00113685,3250.5,3250.4,15.39100937]
[1642695280138,2.61952952,3250.5,3250.4,15.39100937]
[1642695280337,0.00113685,3250.5,3250.4,15.39100937]
[1642695280938,0.00113685,3250.5,3250.4,16.42310206]
[1642695281993,0.00113685,3250.5,3250.4,15.39100937]
[1642695282394,1.54510019,3250.5,3250.4,15.39100937]
[1642695283394,1.54510019,3250.5,3250.4,14.50448057]
[1642695283596,0.00113685,3250.5,3250.4,14.50448057]
[1642695284202,2.61952952,3250.5,3250.4,14.50448057]
[1642695284600,4.16731503,3250.5,3250.4,15.80448057]
[1642695284800,2.31144773,3250.5,3250.4,15.80448057]
[1642695285840,2.31144773,3250.5,3250.4,14.50448057]
[1642695286043,2.31144773,3250.5,3249.8,2.57046269]
[1642695286044,0.01394224,3250.5,3249.7,18.99209269]
[1642695286343,0.01394224,3250.5,3249.8,0.36984212]
[1642695286344,3.09049914,3250.1,3249.8,0.36984212]
[1642695286641,3.09049914,3250.1,3249.9,0.0022737]
[1642695286841,5.70889181,3250.0,3249.9,0.0022737]
[1642695287045,3.09049914,3250.2,3249.9,0.0022737]
[1642695287245,5.70889181,3250.1,3249.9,0.0022737]
[1642695287444,2.61839267,3250.0,3249.7,0.00341054]
[1642695287644,2.61839267,3249.9,3249.7,0.00341054]
[1642695287848,2.61839267,3249.8,3249.7,0.00341054]
[1642695288046,3.09049914,3250.1,3249.7,0.00341054]
[1642695288248,2.99645303,3250.1,3249.7,0.00341054]
[1642695288443,2.99645303,3250.1,3249.5,2.80098054]
[1642695288650,0.00671688,3249.6,3249.5,2.80098054]
[1642695289045,0.00671688,3249.6,3249.5,2.80211739]
[1642695289246,2.62510955,3249.6,3249.5,2.80211739]
[1642695289489,2.62510955,3249.6,3249.5,20.76211739]
[1642695289985,2.62510955,3249.6,3249.5,21.06211739]
[1642695290186,2.62510955,3249.6,3249.5,1.72444142]
[1642695290785,2.62510955,3249.6,3249.5,19.68444142]
[1642695291990,2.62510955,3249.6,3249.5,21.21360958]
[1642695292190,2.62510955,3249.6,3249.5,21.58060958]
[1642695292592,2.62510955,3249.6,3249.5,22.88060958]
[1642695292997,2.62510955,3249.6,3249.5,22.99660958]
[1642695293261,2.62510955,3249.6,3249.5,24.0899569]
[1642695293460,2.62510955,3249.6,3249.5,25.6236869]
[1642695293662,2.62510955,3249.6,3249.5,23.9683569]
[1642695293861,2.62510955,3249.6,3249.5,23.6683569]
[1642695294062,2.62537277,3249.6,3249.5,23.6683569]
[1642695294263,2.62537277,3249.6,3249.5,22.63626421]
[1642695294562,2.62537277,3249.6,3249.5,22.93626421]
[1642695295062,1.26535645,3249.6,3249.5,23.05146421]
[1642695295264,0.00170527,3250.0,3249.6,2.31317061]
[1642695295464,0.00170527,3250.0,3249.7,19.09623]
[1642695295672,0.00113684,3249.9,3249.8,17.96]
[1642695295868,0.00113684,3249.9,3249.8,19.627]
[1642695296066,0.00113684,3249.9,3249.8,20.39622]
[1642695297093,0.00113684,3249.9,3249.8,19.627]
[1642695297697,0.00113684,3249.9,3249.8,18.327]
[1642695299095,0.00113684,3249.9,3249.8,19.627]
[1642695299499,0.00113684,3249.9,3249.8,21.16537]
[1642695299698,0.00113684,3249.9,3249.8,21.46537]
[1642695300097,0.00113684,3249.9,3249.8,19.927]
[1642695300301,0.00113684,3249.9,3249.8,18.327]
[1642695301739,0.00113684,3249.9,3249.8,19.327]
[1642695301941,1.54793433,3249.9,3249.8,19.627]
[1642695302144,0.00113684,3249.9,3249.8,18.327]
[1642695302342,2.32051721,3249.9,3249.8,18.327]
[1642695302540,0.00113684,3249.9,3249.8,18.327]
[1642695302940,2.32051721,3250.2,3249.9,3.9]
[1642695303149,8.4030239,3251.3,3250.0,18.327]
[1642695303150,3.8666663,3250.9,3250.0,18.327]
[1642695303347,8.77695507,3251.4,3250.0,18.327]
[1642695303348,0.00113685,3250.1,3250.0,23.8596]
[1642695303654,3.6214,3251.4,3250.1,6.3]
[1642695303655,1.54748916,3250.4,3250.1,6.3]
[1642695303847,1.54748916,3250.4,3250.2,18.327]
[1642695304055,3.8225931,3250.1,3249.8,0.1168]
[1642695304251,3.8225931,3250.1,3249.9,0.367]
[1642695304491,3.8225931,3250.1,3250.0,17.96]
[1642695304690,3.8225931,3250.1,3250.0,19.327]
[1642695304988,3.8225931,3250.1,3250.0,19.627]
[1642695305390,3.8225931,3250.1,3250.0,21.14238517]
[1642695305792,3.8225931,3250.1,3250.0,18.327]
[1642695306695,3.8225931,3250.1,3250.0,19.327]
[1642695306891,3.8225931,3250.1,3250.0,19.32290621]
[1642695307094,3.8225931,3250.1,3250.0,18.89366338]
[1642695307696,3.8225931,3250.1,3250.0,17.89366338]
[1642695308360,3.8225931,3250.1,3250.0,18.26066338]
[1642695309162,3.8225931,3250.1,3250.0,20.71610386]
[1642695309563,3.8225931,3250.1,3250.0,19.26066338]
[1642695309564,4.08347534,3250.1,3250.0,19.26066338]
[1642695311166,4.08347534,3250.1,3250.0,18.26066338]
[1642695311367,6.40058942,3250.1,3250.0,18.26066338]
[1642695312393,4.08347534,3250.1,3250.0,0.367]
[1642695312598,4.08347534,3250.1,3249.9,0.12432985]
[1642695312599,6.27282065,3250.1,3249.9,0.12432985]
[1642695312796,6.27282065,3250.1,3249.2,1.03209269]
[1642695312797,8.39148193,3250.0,3249.2,1.03209269]
[1642695313001,2.31384635,3249.4,3249.2,1.03209269]
[1642695313194,2.31384635,3249.3,3249.2,1.03209269]
[1642695313397,1.47278118,3249.3,3249.2,1.03209269]
[1642695313595,1.47278118,3249.3,3249.2,0.00397896]
[1642695314697,1.6032223,3249.3,3249.2,0.00397896]
[1642695314897,1.73366342,3249.3,3249.2,0.00397896]
[1642695315096,6.66672804,3249.3,3249.2,0.00397896]
[1642695315500,4.35288169,3249.3,3249.2,0.00397896]
[1642695316048,6.3,3249.2,3248.8,1.03209269]
[1642695316251,7.21491751,3248.9,3248.8,1.03209269]
[1642695316444,9.83413578,3248.9,3248.8,1.03209269]
[1642695316643,7.51921827,3248.9,3248.4,0.34289111]
[1642695316848,1.33329999,3248.8,3248.4,0.34289111]
[1642695317046,2.31369814,3248.7,3248.5,0.00397896]
[1642695317246,5.91369814,3248.6,3248.5,0.00397896]
[1642695317447,2.61921827,3248.6,3248.5,0.00397896]
[1642695318046,4.92796244,3248.6,3248.5,0.00397896]
[1642695318648,2.61921827,3248.6,3248.5,0.00397896]
[1642695318848,2.30874417,3248.7,3248.6,6.25]
[1642695319054,8.02802603,3249.3,3248.6,6.25]
[1642695319055,2.30874417,3249.2,3248.6,26.24795346]
[1642695319259,2.30874417,3249.2,3248.7,0.37951439]
[1642695319260,1.53988474,3249.0,3248.7,0.37951439]
[1642695319506,0.26088224,3249.3,3248.7,0.36984212]
[1642695319507,1.53988474,3249.1,3248.7,0.36984212]
[1642695319697,1.53988474,3249.0,3248.8,17.96227369]
[1642695319900,1.53988474,3248.9,3248.8,0.00227369]
[1642695320095,1.53988474,3248.9,3248.6,17.96]
[1642695320297,0.13044112,3249.0,3248.5,1.03209269]
[1642695320298,0.00444016,3248.7,3248.5,1.03209269]
[1642695320499,1.53841763,3248.6,3248.5,2.03209269]
[1642695320697,1.54285779,3248.7,3248.6,0.00341054]
[1642695320894,1.54285779,3248.7,3248.6,0.37041054]
[1642695321095,4.22510304,3248.7,3248.6,0.37041054]
[1642695321299,4.93276669,3248.7,3248.6,0.00341054]
[1642695321501,6.30225116,3248.5,3248.4,0.34289111]
[1642695321900,2.30467253,3248.5,3248.4,0.34402796]
[1642695322301,4.85,3248.4,3247.9,0.00224632]
[1642695322511,1.53314968,3248.2,3247.9,0.00224632]
[1642695322709,1.53314968,3248.2,3248.0,0.00227369]
[1642695322710,7.00760499,3248.1,3248.0,0.00227369]
[1642695322907,2.9060183,3248.2,3248.0,0.00227369]
[1642695323169,2.9060183,3248.2,3247.6,0.00454738]
[1642695323170,2.9216984,3248.2,3247.6,0.00454738]
[1642695323373,2.4539183,3248.1,3247.6,0.00454738]
[1642695325372,0.13044112,3247.8,3247.6,0.00454738]
[1642695325775,0.13044112,3247.7,3247.6,0.00454738]
[1642695327798,1.57005615,3247.7,3247.6,0.00454738]
[1642695328698,0.13044112,3247.7,3247.6,0.00454738]
[1642695329301,2.58044112,3247.7,3247.6,0.00454738]
[1642695329598,0.13044112,3247.7,3247.6,0.00454738]
[1642695329797,1.2247964,3247.7,3247.6,0.00454738]
[1642695330742,1.35523752,3247.7,3247.6,0.00454738]
[1642695331346,6.85523752,3247.7,3247.6,0.00454738]
[1642695331545,1.41522213,3247.6,3247.5,0.00454738]
[1642695332345,1.54566325,3247.6,3247.5,0.00454738]
[1642695332750,3.89275559,3247.6,3247.5,0.00454738]
[1642695332949,0.03010913,3247.3,3247.1,0.05224632]
[1642695333147,1.01240913,3247.3,3247.1,0.05224632]
[1642695333346,0.9823,3247.3,3247.2,0.0022737]
[1642695334148,0.00316729,3247.4,3247.2,0.0022737]
[1642695334416,0.00316729,3247.4,3247.3,0.367]
[1642695334816,0.00430414,3247.4,3247.3,18.2792737]
[1642695336010,0.13474526,3247.4,3247.3,0.367]
[1642695336216,1.42982882,3247.4,3247.3,0.367]
[1642695336413,0.71751237,3246.9,3246.7,0.417]
[1642695336818,0.71751237,3246.9,3246.8,0.05227369]
[1642695337517,0.84795349,3246.9,3246.8,19.37397262]
[1642695338151,0.84795349,3246.9,3246.8,0.05227369]
[1642695339149,0.84795349,3246.9,3246.8,1.51323447]
[1642695339749,0.84795349,3246.9,3246.8,1.88023447]
[1642695340054,0.84634626,3246.9,3246.8,20.84023447]
[1642695341250,0.97678738,3246.9,3246.8,20.84023447]
[1642695342410,0.97518015,3246.9,3246.8,20.84023447]
[1642695342814,0.97518015,3246.9,3246.8,0.41927369]
[1642695344010,3.59636755,3246.9,3246.7,17.93152071]
[1642695344211,0.97518015,3246.9,3246.8,0.367]
[1642695345012,3.5962918,3246.9,3246.8,0.367]
[1642695346047,3.8962918,3246.9,3246.8,0.367]
[1642695346248,3.8962918,3246.9,3246.5,0.05]
[1642695346449,2.62111165,3246.8,3246.5,0.05]
[1642695346646,2.62111165,3246.8,3246.6,0.00113685]
[1642695346847,0.13044112,3246.7,3246.6,0.00113685]
[1642695347048,2.75155277,3246.7,3246.6,0.00113685]
[1642695347246,4.24213546,3246.7,3246.6,0.00113685]
[1642695347449,5.46865583,3246.7,3246.6,0.00113685]
[1642695349057,2.75155277,3246.7,3246.6,0.00113685]
[1642695349501,3.05155277,3246.7,3246.6,0.00113685]
[1642695349904,4.33293294,3246.7,3246.6,0.00113685]
[1642695350106,3.05155277,3246.7,3246.6,0.00113685]
[1642695350306,2.75155277,3246.7,3246.6,0.00113685]
[1642695350510,2.75155277,3246.7,3246.6,0.36813685]
[1642695350713,2.75155277,3246.7,3246.6,1.36813685]
[1642695350905,2.75155277,3246.7,3246.6,19.32813685]
[1642695351107,0.13044112,3246.7,3246.6,20.96525528]
[1642695351406,2.75162106,3246.7,3246.6,21.07754549]
[1642695351611,2.75162106,3246.7,3246.6,22.07754549]
[1642695351805,2.88206218,3246.7,3246.6,22.07754549]
[1642695352007,2.8820668,3246.7,3246.6,22.07754549]
[1642695352415,0.71429791,3246.9,3246.7,5.3]
[1642695352612,0.71429791,3246.9,3246.8,18.96]
[1642695352811,0.71429791,3246.9,3246.8,19.627]
[1642695353011,3.33523841,3246.9,3246.8,19.627]
[1642695353259,3.33523841,3246.9,3246.8,0.367]
[1642695353453,0.71147786,3246.7,3246.6,1.33825528]
[1642695353852,3.33241836,3246.7,3246.6,1.33825528]
[1642695354353,3.33241836,3246.7,3246.6,0.00113685]
[1642695355557,3.33241836,3246.7,3246.5,0.04115186]
[1642695355767,2.6209405,3246.6,3246.5,0.04115186]
[1642695357802,6.3,3246.5,3246.3,0.007]
[1642695358007,2.6209405,3246.4,3246.3,0.007]
[1642695358200,2.6209405,3246.4,3246.3,1.45158008]
[1642695358603,2.6209405,3246.4,3246.3,19.41158008]
[1642695358803,2.6209405,3246.4,3246.3,19.77858008]
[1642695359202,2.6209405,3246.6,3246.3,20.07858008]
[1642695359404,2.6209405,3246.5,3246.3,20.37858008]
[1642695359606,0.71147786,3246.7,3246.4,17.96113685]
[1642695359805,0.71147786,3246.7,3246.5,0.367]
[1642695360005,0.71147786,3246.7,3246.5,2.03493344]
[1642695360404,2.23182728,3246.7,3246.5,2.33493344]
[1642695360647,0.71147786,3246.7,3246.5,2.33493344]
[1642695360846,0.71147786,3246.7,3246.6,17.96]
[1642695361049,0.71147786,3246.7,3246.6,19.327]
[1642695361647,0.71147786,3246.7,3246.6,1.367]
[1642695363047,0.71147786,3246.7,3246.6,0.367]
[1642695363250,0.71147786,3246.7,3246.4,0.00113685]
[1642695363449,1.53617013,3246.6,3246.4,0.00113685]
[1642695364052,0.71147786,3246.7,3246.5,1.16552875]
[1642695364508,0.71147786,3246.7,3246.4,0.00113685]
[1642695364509,2.24764799,3246.7,3246.4,0.00113685]
[1642695364711,1.53617013,3246.6,3246.4,0.00113685]
[1642695365407,1.53617013,3246.6,3246.4,0.04568422]
[1642695365607,1.53617013,3246.6,3246.4,0.00113685]
[1642695366409,1.53617013,3246.6,3246.5,1.43406311]
[1642695366807,0.71147786,3246.7,3246.4,0.00113685]
[1642695367011,1.53963234,3246.5,3246.4,0.00113685]
[1642695367411,4.55120977,3246.7,3246.4,0.00113685]
[1642695367612,2.30242137,3246.6,3246.4,0.00113685]
[1642695367812,2.30242137,3246.5,3246.4,0.00113685]
[1642695368015,2.30242137,3246.6,3246.4,0.00113685]
[1642695368441,2.30242137,3246.6,3246.3,0.00817922]
[1642695368640,1.53993272,3246.4,3246.3,0.00817922]
[1642695369040,2.30242137,3246.4,3246.3,0.00817922]
[1642695369240,0.01264566,3246.5,3246.3,0.00817922]
[1642695369439,1.53951698,3246.4,3246.3,0.00817922]
[1642695369841,7.83951698,3246.4,3246.3,0.00817922]
[1642695370043,7.0088,3246.4,3246.3,0.00817922]
[1642695370442,9.316649,3246.4,3246.3,0.00817922]
[1642695370644,7.0088,3246.4,3246.3,0.00817922]
[1642695370840,9.3159517,3246.4,3246.3,0.00817922]
[1642695371240,3.0159517,3246.4,3246.3,0.00817922]
[1642695371642,0.7088,3246.4,3246.3,0.00817922]
[1642695371891,3.6588,3246.4,3246.3,0.00817922]
[1642695372097,0.7088,3246.4,3246.3,0.00817922]
[1642695372397,2.2487884,3246.7,3246.3,0.00817922]
[1642695372398,2.3071517,3246.6,3246.3,0.00817922]
[1642695372599,2.3071517,3246.5,3246.3,0.00817922]
[1642695372799,2.3071517,3246.4,3246.3,0.00817922]
[1642695373502,0.00113685,3246.6,3246.3,0.00817922]
[1642695373503,3.06903463,3246.6,3246.3,0.00817922]
[1642695373897,5.95443751,3246.4,3246.3,0.00817922]
[1642695374697,8.57616868,3246.4,3246.3,0.00817922]
[1642695375654,4.92616868,3246.4,3246.3,0.00817922]
[1642695376049,0.2524,3246.5,3246.3,0.00817922]
[1642695376247,6.3,3246.4,3246.3,0.00817922]
[1642695376449,8.92173117,3246.4,3246.3,0.00817922]
[1642695377047,12.98962895,3246.4,3246.3,0.00817922]
[1642695377248,12.98962895,3246.4,3246.2,0.00224312]
[1642695377249,6.3,3246.3,3246.2,0.00224312]
[1642695377448,11.99011236,3246.3,3246.2,0.00224312]
[1642695377649,1.24252554,3246.1,3245.9,0.65084142]
[1642695377850,4.92299208,3246.0,3245.9,0.65084142]
[1642695378054,2.62173117,3246.0,3245.9,0.65084142]
[1642695378451,4.81341037,3246.0,3245.9,0.65084142]
[1642695378651,2.62173117,3246.0,3245.9,0.65084142]
[1642695378849,6.75622297,3246.0,3245.9,0.65084142]
[1642695379054,2.62173117,3246.0,3245.9,0.65084142]
[1642695379708,2.62173117,3246.1,3245.9,0.65084142]
[1642695379914,2.62173117,3246.0,3245.9,0.65084142]
[1642695380107,2.62173117,3246.0,3245.9,0.95084142]
[1642695380307,1.53440969,3246.5,3245.9,1.25084142]
[1642695380508,3.02912241,3246.5,3246.3,1.3762484]
[1642695380712,2.62173117,3246.4,3246.0,0.00227369]
[1642695380912,2.30239776,3246.6,3246.0,0.00227369]
[1642695380913,4.15838821,3246.3,3246.0,0.00227369]
[1642695381107,2.62173117,3246.2,3246.0,0.00227369]
[1642695381308,2.62173117,3246.1,3246.0,0.00227369]
[1642695381711,1.53665704,3246.3,3246.0,0.00227369]
[1642695381918,4.18665704,3246.1,3246.0,0.00227369]
[1642695382113,6.80838821,3246.1,3246.0,0.00227369]
[1642695382312,5.27173117,3246.1,3246.0,0.00227369]
[1642695382712,5.27197325,3246.1,3246.0,0.00227369]
[1642695382912,6.80783642,3246.1,3246.0,0.00227369]
[1642695383350,7.89376236,3246.1,3246.0,0.00227369]
[1642695383550,3.70789919,3246.1,3245.9,0.64850198]
[1642695383750,4.15736382,3246.0,3245.9,0.64850198]
[1642695383955,2.62197325,3246.0,3245.9,0.64850198]
[1642695384559,2.30126091,3246.1,3245.9,0.64850198]
[1642695384755,2.62197325,3246.0,3245.9,0.64850198]
[1642695384955,2.30126091,3246.0,3245.9,0.64850198]
[1642695385157,4.15693067,3246.0,3245.9,0.64850198]
[1642695385356,2.99896019,3246.0,3245.9,0.64850198]
[1642695385556,4.08597602,3246.0,3245.9,0.64850198]
[1642695385757,2.62197325,3246.0,3245.9,0.64850198]
[1642695386755,3.65260059,3246.1,3245.9,0.64850198]
[1642695386999,2.62197325,3246.0,3245.9,0.64850198]
[1642695387400,4.92323416,3246.0,3245.9,0.64850198]
[1642695387700,2.62197325,3246.0,3245.9,0.64850198]
[1642695388299,5.57197325,3246.0,3245.9,0.64850198]
[1642695388599,4.92323416,3246.0,3245.9,0.64850198]
[1642695388798,2.62197325,3246.0,3245.9,0.64850198]
[1642695389498,2.30126091,3246.1,3245.9,0.64850198]
[1642695389901,3.07628271,3246.0,3245.9,0.64850198]
[1642695390102,2.62204773,3246.0,3245.9,18.60850198]
[1642695390302,3.07628271,3246.2,3245.9,18.60850198]
[1642695390303,4.92898291,3246.1,3245.9,20.48481704]
[1642695390500,0.00113685,3246.6,3245.9,20.48481704]
[1642695390501,2.30693518,3246.2,3246.0,3.35224188]
[1642695390748,2.30693518,3246.3,3246.1,0.367]
[1642695391150,0.00113685,3246.2,3246.1,0.667]
[1642695391349,0.00113685,3246.2,3246.1,1.77963492]
[1642695391957,0.71147786,3246.7,3246.2,4.1]
[1642695391958,3.01841304,3246.7,3246.2,4.1]
[1642695392155,0.71147786,3246.7,3246.4,17.96]
[1642695392351,0.71147786,3246.7,3246.5,0.367]
[1642695392555,0.71147786,3246.7,3246.5,0.36924188]
[1642695392753,7.786e-05,3246.7,3246.6,17.96]
[1642695392956,3.10418271,3247.2,3246.7,5.85]
[1642695392957,0.0279,3247.2,3246.7,5.85]
[1642695393154,0.0279,3247.2,3246.8,17.96]
[1642695393355,2.33483518,3247.2,3246.9,19.4026971]
[1642695393553,2.33483518,3247.2,3247.0,0.367]
[1642695393554,0.0279,3247.2,3247.0,0.367]
[1642695393951,0.0279,3247.2,3247.1,17.96]
[1642695394152,0.0279,3247.2,3247.1,18.327]
[1642695394410,0.03358423,3247.2,3247.1,18.627]
[1642695394798,2.34860276,3247.2,3247.1,18.627]
[1642695394996,2.34860276,3247.2,3247.1,0.367]
[1642695395397,0.03358423,3247.2,3247.1,0.367]
[1642695396604,2.34817211,3247.2,3247.1,0.367]
[1642695396802,2.34817211,3247.2,3247.1,0.667]
[1642695397401,0.03358423,3247.2,3247.1,0.667]
[1642695397910,2.34849495,3247.2,3247.1,0.367]
[1642695398149,2.34849495,3247.2,3247.1,18.327]
[1642695398349,0.03358423,3247.2,3247.1,18.327]